[Event "Lueneburg Open-A 2019"]
[Site "Lueneburg"]
[Date "2019.08.09"]
[Round "7.30"]
[White "Ziese, Gerhard"]
[Black "Lau, Felix"]
[Result "1/2-1/2"]
[ECO "A20"]
[WhiteElo "1897"]
[BlackElo "2044"]
[Annotator "NA"]
[PlyCount "120"]
[EventDate "2019.08.03"]
[EventType "swiss"]
[EventCountry "GER"]
[SourceTitle "playchess.com"]
[Source "ChessBase"]
[SourceQuality "1"]
[TimeControl "40/5400+30:1800+30"]

1. c4 {[%emt 0:00:00]} e5 {[%emt 0:01:14]} 2. g3 {[%emt 0:00:00]} Nf6 {[%emt 0:00:39]} 3. Bg2 {[%emt 0:00:00]} c6 {[%emt 0:00:36]} 4. d4 {[%emt 0:00:48]} exd4 {[%emt 0:16:01]} 5. Qxd4 {[%emt 0:00:13]} Na6 {[%emt 0:01:34]} 6. Nf3 {[%emt 0:02:09]} Bc5 {[%emt 1:12:56]} 7. Qe5+ {[%emt 0:01:32]} Qe7 {[%emt 0:00:00]} 8. Qxe7+ {[%emt 0:00:25]} Kxe7 {[%emt 0:00:00]} 9. a3 {[%emt 0:00:49]} Ne4 {[%emt 0:00:00]} 10. e3 {[%emt 0:01:13]} Bb6 {[%emt 0:00:00]} 11. b4 {[%emt 0:01:13]} Rd8 {[%emt 0:00:00]} 12. Bb2 {[%emt 0:00:32]} f6 {[%emt 0:00:00]} 13. Nbd2 {[%emt 0:00:43]} Nxd2 {[%emt 0:00:00]} 14. Nxd2 {[%emt 0:00:09]} c5 {[%emt 0:00:00]} 15. b5 {[%emt 0:00:26]} Nc7 {[%emt 0:00:00]} 16. O-O {[%emt 0:08:16]} d5 {[%emt 0:00:00]} 17. cxd5 {[%emt 0:00:10]} Nxd5 {[%emt 0:00:00]} 18. Nc4 {[%emt 0:00:16]} Bc7 {[%emt 0:00:00]} 19. Rfd1 {[%emt 0:04:43]} Be6 {[%emt 0:00:00]} 20. Rac1 {[%emt 0:02:49]} Rab8 {[%emt 0:00:00]} 21. h3 {[%emt 0:10:49]} Rd7 {[%emt 0:00:00]} 22. Kh2 {[%emt 0:17:13]} Rbd8 {[%emt 0:00:00]} 23. Bf3 {[%emt 0:01:43]} Bb8 {[%emt 0:00:00]} 24. Kg2 {[%emt 0:12:32]} b6 {[%emt 0:00:00]} 25. g4 {[%emt 0:07:23]} Nc7 {[%emt 0:00:00]} 26. Rxd7+ {[%emt 0:00:57]} Rxd7 {[%emt 0:00:00]} 27. a4 {[%emt 0:01:13]} Nd5 {[%emt 0:00:00]} 28. a5 {[%emt 0:02:31]} Bc7 {[%emt 0:00:00]} 29. axb6 {[%emt 0:00:57]} axb6 {[%emt 0:00:00]} 30. Kf1 {[%emt 0:01:27]} Nb4 {[%emt 0:00:00]} 31. Ba3 {[%emt 0:05:43]} Nd3 {[%emt 0:00:00]} 32. Rc2 {[%emt 0:17:06]} Bxc4 {[%emt 0:00:00]} 33. Rxc4 {[%emt 0:00:00]} Ne5 {[%emt 0:00:00]} 34. Re4 {[%emt 0:00:00]} Rd3 {[%emt 0:00:00]} 35. Bb2 {[%emt 0:00:00]} Rb3 {[%emt 0:00:00]} 36. Bxe5 {[%emt 0:00:00]} Bxe5 {[%emt 0:00:00]} 37. Be2 {[%emt 0:00:00]} Rb1+ {[%emt 0:00:00]} 38. Kg2 {[%emt 0:00:00]} Kd6 {[%emt 0:01:57]} 39. f4 {[%emt 0:00:00]} Bc3 {[%emt 0:00:38]} 40. Bc4 {[%emt 0:00:00]} Rb4 {[%emt 0:01:17]} 41. Kf3 {[%emt 0:22:42]} g6 {[%emt 0:36:54]} 42. Re6+ {[%emt 0:01:21]} Kd7 {[%emt 0:00:47]} 43. Re4 {[%emt 0:00:22]} h6 {[%emt 0:00:00]} 44. Ke2 {[%emt 0:00:00]} Rb2+ {[%emt 0:00:00]} 45. Kd3 {[%emt 0:12:05]} Ba5 {[%emt 0:00:00]} 46. Re6 {[%emt 0:00:00]} f5 {[%emt 0:00:00]} 47. gxf5 {[%emt 0:00:00]} gxf5 {[%emt 0:00:00]} 48. e4 {[%emt 0:00:00]} Rd2+ {[%emt 0:00:00]} 49. Ke3 {[%emt 0:00:00]} Rd4 {[%emt 0:00:00]} 50. Bd5 {[%emt 0:00:00]} fxe4 {[%emt 0:00:00]} 51. Re5 {[%emt 0:00:00]} Bd2+ {[%emt 0:00:00]} 52. Ke2 {[%emt 0:00:00]} Kd6 {[%emt 0:00:00]} 53. Bc6 {[%emt 0:00:00]} Bxf4 {[%emt 0:00:00]} 54. Rxe4 {[%emt 0:00:00]} Rxe4+ {[%emt 0:00:00]} 55. Bxe4 {[%emt 0:00:00]} Ke5 {[%emt 0:00:00]} 56. Bg6 {[%emt 0:00:00]} Kd4 {[%emt 0:00:00]} 57. Kd1 {[%emt 0:00:00]} Kc4 {[%emt 0:00:00]} 58. Be8 {[%emt 0:00:00]} Kb3 {[%emt 0:00:00]} 59. Bg6 {[%emt 0:00:00]} c4 {[%emt 0:00:00]} 60. Bf7 {[%emt 0:00:00]} Kb4 {[%emt 0:01:20]} 1/2-1/2

[Event "Lueneburg Open-A 2019"]
[Site "Lueneburg"]
[Date "2019.08.09"]
[Round "7.31"]
[White "Porth, Hartmut"]
[Black "Hesse, Juergen"]
[Result "1/2-1/2"]
[ECO "B02"]
[WhiteElo "2032"]
[BlackElo "1877"]
[Annotator "NA"]
[PlyCount "127"]
[EventDate "2019.08.03"]
[EventType "swiss"]
[EventCountry "GER"]
[SourceTitle "playchess.com"]
[Source "ChessBase"]
[SourceQuality "1"]
[TimeControl "40/5400+30:1800+30"]

1. g3 {[%emt 0:01:41]} Nf6 {[%emt 0:00:13]} 2. Bg2 {[%emt 0:00:07]} g6 {[%emt 0:00:42]} 3. d3 {[%emt 0:00:59]} Bg7 {[%emt 0:01:47]} 4. e4 {[%emt 0:03:17]} d6 {[%emt 0:01:12]} 5. f4 {[%emt 0:00:29]} Nc6 {[%emt 0:04:04]} 6. Nf3 {[%emt 0:01:06]} O-O {[%emt 0:06:09]} 7. O-O {[%emt 0:00:38]} Nd7 {[%emt 0:10:55]} 8. c3 {[%emt 0:01:00]} Nb6 {[%emt 0:05:30]} 9. Na3 {[%emt 0:06:55]} e5 {[%emt 0:06:32]} 10. f5 {[%emt 0:12:38]} gxf5 {[%emt 0:13:02]} 11. Nh4 {[%emt 0:00:47]} f4 {[%emt 0:05:15]} 12. Qh5 {[%emt 0:01:52]} fxg3 {[%emt 0:04:03]} 13. hxg3 {[%emt 0:00:35]} Qe8 {[%emt 0:03:24]} 14. Bg5 {[%emt 0:28:02]} f6 {[%emt 0:06:12]} 15. Qxe8 {[%emt 0:00:19]} Rxe8 {[%emt 0:00:08]} 16. Bxf6 {[%emt 0:00:16]} Be6 {[%emt 0:01:26]} 17. Bg5 {[%emt 0:04:08]} a6 {[%emt 0:01:33]} 18. Nf5 {[%emt 0:00:13]} Rf8 {[%emt 0:04:03]} 19. Nc2 {[%emt 0:04:09]} Rae8 {[%emt 0:01:57]} 20. Nce3 {[%emt 0:00:28]} Nc8 {[%emt 0:02:17]} 21. b3 {[%emt 0:02:31]} N6e7 {[%emt 0:02:39]} 22. Rad1 {[%emt 0:00:27]} Nc6 {[%emt 0:05:00]} 23. Kh2 {[%emt 0:02:42]} Nb6 {[%emt 0:01:53]} 24. Rd2 {[%emt 0:08:44]} Nc8 {[%emt 0:01:02]} 25. Rdf2 {[%emt 0:01:45]} Nb6 {[%emt 0:01:15]} 26. Bf3 {[%emt 0:03:01]} Nd7 {[%emt 0:01:17]} 27. Bh5 {[%emt 0:01:21]} Rb8 {[%emt 0:00:32]} 28. Bg4 {[%emt 0:04:01]} Nc5 {[%emt 0:01:39]} 29. Rd2 {[%emt 0:01:14]} Rbe8 {[%emt 0:00:31]} 30. b4 {[%emt 0:01:01]} Bxf5 {[%emt 0:00:40]} 31. Bxf5 {[%emt 0:01:47]} Ne6 {[%emt 0:00:51]} 32. Bxe6+ {[%emt 0:00:46]} Rxe6 {[%emt 0:00:09]} 33. Rxf8+ {[%emt 0:00:32]} Bxf8 {[%emt 0:00:49]} 34. Nd5 {[%emt 0:00:12]} Rg6 {[%emt 0:00:31]} 35. Bh4 {[%emt 0:00:58]} Rg7 {[%emt 0:00:37]} 36. Nf6+ {[%emt 0:01:36]} Kh8 {[%emt 0:02:07]} 37. Kh3 {[%emt 0:02:23]} Rf7 {[%emt 0:00:43]} 38. g4 {[%emt 0:00:43]} Ne7 {[%emt 0:01:19]} 39. Nh5 {[%emt 0:01:30]} Ng6 {[%emt 0:02:10]} 40. Bg5 {[%emt 0:00:43]} h6 {[%emt 0:02:19]} 41. Bf6+ {[%emt 0:03:19]} Kg8 {[%emt 0:02:12]} 42. g5 {[%emt 0:03:35]} hxg5 {[%emt 0:03:05]} 43. Bxg5 {[%emt 0:00:03]} Be7 {[%emt 0:01:57]} 44. Kg4 {[%emt 0:06:13]} Rf1 {[%emt 0:02:48]} 45. Be3 {[%emt 0:05:28]} Re1 {[%emt 0:03:14]} 46. Bf2 {[%emt 0:00:37]} Rc1 {[%emt 0:00:48]} 47. c4 {[%emt 0:02:25]} Rb1 {[%emt 0:00:51]} 48. a3 {[%emt 0:00:02]} Rb3 {[%emt 0:01:08]} 49. Be3 {[%emt 0:03:35]} Rxa3 {[%emt 0:01:30]} 50. Rg2 {[%emt 0:01:11]} Kf7 {[%emt 0:05:01]} 51. Rf2+ {[%emt 0:00:15]} Ke6 {[%emt 0:00:50]} 52. Ng7+ {[%emt 0:00:33]} Kd7 {[%emt 0:00:21]} 53. Rf7 {[%emt 0:01:58]} Nh8 {[%emt 0:00:29]} 54. Rf3 {[%emt 0:00:33]} Rxd3 {[%emt 0:01:30]} 55. Nf5 {[%emt 0:00:50]} Rc3 {[%emt 0:03:01]} 56. Nxe7 {[%emt 0:02:09]} Rxc4 {[%emt 0:00:30]} 57. Nd5 {[%emt 0:00:13]} Rxe4+ {[%emt 0:00:56]} 58. Kf5 {[%emt 0:00:28]} Rh4 {[%emt 0:00:46]} 59. Rg3 {[%emt 0:00:46]} Kc6 {[%emt 0:01:36]} 60. Ke6 {[%emt 0:01:15]} Rh7 {[%emt 0:00:49]} 61. Nf6 {[%emt 0:01:42]} Rh2 {[%emt 0:03:32]} 62. Rg7 {[%emt 0:00:51]} Rc2 {[%emt 0:00:48]} 63. Nd5 {[%emt 0:01:06]} Kb5 {[%emt 0:01:52]} 64. Rg8 {[%emt 0:05:17]} 1/2-1/2

[Event "Lueneburg Open-A 2019"]
[Site "Lueneburg"]
[Date "2019.08.09"]
[Round "7.33"]
[White "Schulze, Lukas"]
[Black "Wozny, Michael"]
[Result "1-0"]
[ECO "E62"]
[WhiteElo "1724"]
[BlackElo "1942"]
[Annotator "NA"]
[PlyCount "48"]
[EventDate "2019.08.03"]
[EventType "swiss"]
[EventCountry "GER"]
[SourceTitle "playchess.com"]
[Source "ChessBase"]
[SourceQuality "1"]
[TimeControl "40/5400+30:1800+30"]

1. Nf3 {[%emt 0:00:00]} Nf6 {[%emt 0:00:39]} 2. c4 {[%emt 0:00:00]} g6 {[%emt 0:00:32]} 3. g3 {[%emt 0:00:00]} Bg7 {[%emt 0:00:16]} 4. Bg2 {[%emt 0:00:02]} O-O {[%emt 0:00:53]} 5. O-O {[%emt 0:00:07]} c6 {[%emt 0:00:39]} 6. d4 {[%emt 0:01:21]} d6 {[%emt 0:00:40]} 7. Nc3 {[%emt 0:04:13]} Bg4 {[%emt 0:00:53]} 8. Qb3 {[%emt 0:04:58]} Bxf3 {[%emt 0:01:58]} 9. Bxf3 {[%emt 0:01:06]} Qb6 {[%emt 0:02:12]} 10. Rd1 {[%emt 0:09:13]} Qxb3 {[%emt 0:04:36]} 11. axb3 {[%emt 0:00:02]} Nbd7 {[%emt 0:01:02]} 12. Bf4 {[%emt 0:08:45]} e5 {[%emt 0:01:13]} 13. dxe5 {[%emt 0:01:47]} dxe5 {[%emt 0:01:34]} 14. Be3 {[%emt 0:01:56]} a6 {[%emt 0:02:08]} 15. Ne4 {[%emt 0:03:37]} Rfd8 {[%emt 0:06:02]} 16. Nd6 {[%emt 0:02:34]} Bf8 {[%emt 0:01:17]} 17. Nxb7 {[%emt 0:02:16]} Rdc8 {[%emt 0:00:41]} 18. Na5 {[%emt 0:04:35]} e4 {[%emt 0:03:26]} 19. Bg2 {[%emt 0:01:27]} Bc5 {[%emt 0:03:14]} 20. Bxc5 {[%emt 0:03:31]} Nxc5 {[%emt 0:00:10]} 21. Rd6 {[%emt 0:01:28]} Ne8 {[%emt 0:01:02]} 22. Rxc6 {[%emt 0:01:32]} Rxc6 {[%emt 0:00:47]} 23. Nxc6 {[%emt 0:00:12]} Nxb3 {[%emt 1:05:36]} 24. Bxe4 {[%emt 0:47:18]} Nc5 {[%emt 0:00:30]} 1-0

[Event "Lueneburg Open-A 2019"]
[Site "Lueneburg"]
[Date "2019.08.09"]
[Round "7.35"]
[White "Wobbe, Sven"]
[Black "Serreck, Uwe"]
[Result "1-0"]
[ECO "B06"]
[WhiteElo "2019"]
[BlackElo "1869"]
[Annotator "NA"]
[PlyCount "51"]
[EventDate "2019.08.03"]
[EventType "swiss"]
[EventCountry "GER"]
[SourceTitle "playchess.com"]
[Source "ChessBase"]
[SourceQuality "1"]
[TimeControl "40/5400+30:1800+30"]

1. e4 {[%emt 0:00:00]} g6 {[%emt 0:00:00]} 2. d4 {[%emt 0:00:17]} Bg7 {[%emt 0:00:00]} 3. Nf3 {[%emt 0:01:38]} d6 {[%emt 0:00:00]} 4. Bc4 {[%emt 0:00:59]} a6 {[%emt 0:00:30]} 5. a4 {[%emt 0:01:41]} b6 {[%emt 0:01:15]} 6. O-O {[%emt 0:00:43]} e6 {[%emt 0:00:21]} 7. Nbd2 {[%emt 0:08:03]} Nd7 {[%emt 0:01:20]} 8. Qe2 {[%emt 0:03:03]} Bb7 {[%emt 0:02:39]} 9. Re1 {[%emt 0:02:50]} Ne7 {[%emt 0:05:09]} 10. c3 {[%emt 0:00:28]} h6 {[%emt 0:02:01]} 11. Nf1 {[%emt 0:09:22]} O-O {[%emt 0:03:12]} 12. Ng3 {[%emt 0:00:52]} c5 {[%emt 0:25:51]} 13. h4 {[%emt 0:07:33]} d5 {[%emt 0:03:25]} 14. Bd3 {[%emt 0:02:59]} dxe4 {[%emt 0:02:25]} 15. Nxe4 {[%emt 0:00:34]} Nf5 {[%emt 0:12:57]} 16. dxc5 {[%emt 0:03:05]} bxc5 {[%emt 0:03:04]} 17. g3 {[%emt 0:03:31]} Qe7 {[%emt 0:05:37]} 18. a5 {[%emt 0:12:23]} Rfd8 {[%emt 0:06:47]} 19. Ned2 {[%emt 0:04:04]} Ne5 {[%emt 0:09:08]} 20. Nxe5 {[%emt 0:04:13]} Nxh4 {[%emt 0:06:06]} 21. Nef3 {[%emt 0:04:20]} Nxf3+ {[%emt 0:04:54]} 22. Nxf3 {[%emt 0:00:13]} Rxd3 {[%emt 0:00:04]} 23. Qxd3 {[%emt 0:01:22]} Rd8 {[%emt 0:00:16]} 24. Qe2 {[%emt 0:02:07]} Qf6 {[%emt 0:01:51]} 25. Nh2 {[%emt 0:02:23]} Qf5 {[%emt 0:00:42]} 26. f3 {[%emt 0:08:00]} 1-0

[Event "Lueneburg Open-A 2019"]
[Site "Lueneburg"]
[Date "2019.08.09"]
[Round "7.36"]
[White "Chmielewski, Axel"]
[Black "Fischer, Thomas"]
[Result "0-1"]
[ECO "A88"]
[WhiteElo "1811"]
[BlackElo "2106"]
[Annotator "NA"]
[PlyCount "97"]
[EventDate "2019.08.03"]
[EventType "swiss"]
[EventCountry "GER"]
[SourceTitle "playchess.com"]
[Source "ChessBase"]
[SourceQuality "1"]
[TimeControl "40/5400+30:1800+30"]

1. d4 {[%emt 0:20:13]} f5 {[%emt 0:01:05]} 2. g3 {[%emt 0:03:14]} g6 {[%emt 0:00:22]} 3. Bg2 {[%emt 0:00:05]} Bg7 {[%emt 0:00:21]} 4. Nf3 {[%emt 0:00:08]} Nf6 {[%emt 0:00:16]} 5. O-O {[%emt 0:00:07]} O-O {[%emt 0:00:14]} 6. c4 {[%emt 0:00:08]} d6 {[%emt 0:00:10]} 7. Nc3 {[%emt 0:00:04]} c6 {[%emt 0:00:14]} 8. d5 {[%emt 0:00:58]} Bd7 {[%emt 0:00:19]} 9. Qc2 {[%emt 0:04:08]} Na6 {[%emt 0:01:00]} 10. a3 {[%emt 0:00:24]} Rc8 {[%emt 0:01:52]} 11. Ng5 {[%emt 0:08:48]} h6 {[%emt 0:13:44]} 12. Nh3 {[%emt 0:00:29]} Nc7 {[%emt 0:10:09]} 13. Qb3 {[%emt 0:04:02]} cxd5 {[%emt 0:06:00]} 14. cxd5 {[%emt 0:01:42]} b6 {[%emt 0:05:47]} 15. Nf4 {[%emt 0:01:41]} Qe8 {[%emt 0:00:16]} 16. Bd2 {[%emt 0:17:47]} Qf7 {[%emt 0:10:17]} 17. a4 {[%emt 0:08:38]} g5 {[%emt 0:02:42]} 18. Nd3 {[%emt 0:00:24]} Qh5 {[%emt 0:04:42]} 19. f3 {[%emt 0:03:03]} Qg6 {[%emt 0:02:38]} 20. Rae1 {[%emt 0:03:59]} h5 {[%emt 0:06:29]} 21. Nb4 {[%emt 0:04:11]} h4 {[%emt 0:06:38]} 22. Nc6 {[%emt 0:03:35]} Bxc6 {[%emt 0:03:08]} 23. dxc6+ {[%emt 0:00:02]} Kh7 {[%emt 0:02:16]} 24. Nb5 {[%emt 0:03:20]} Nxb5 {[%emt 0:01:49]} 25. axb5 {[%emt 0:00:03]} hxg3 {[%emt 0:00:18]} 26. hxg3 {[%emt 0:00:03]} Nh5 {[%emt 0:00:35]} 27. Kf2 {[%emt 0:01:24]} Be5 {[%emt 0:03:36]} 28. f4 {[%emt 0:00:52]} gxf4 {[%emt 0:00:41]} 29. Bxf4 {[%emt 0:01:25]} Nxf4 {[%emt 0:03:13]} 30. Rh1+ {[%emt 0:03:48]} Kg7 {[%emt 0:00:49]} 31. gxf4 {[%emt 0:00:16]} Bxf4 {[%emt 0:02:41]} 32. Bd5 {[%emt 0:01:24]} Kf6 {[%emt 0:05:36]} 33. Reg1 {[%emt 0:00:16]} Bg5 {[%emt 0:00:22]} 34. Qg3 {[%emt 0:01:47]} Rh8 {[%emt 0:00:48]} 35. Qf3 {[%emt 0:03:11]} Rxh1 {[%emt 0:00:33]} 36. Rxh1 {[%emt 0:00:02]} e6 {[%emt 0:01:33]} 37. Bb3 {[%emt 0:00:38]} Rg8 {[%emt 0:00:59]} 38. Qc3+ {[%emt 0:00:31]} Ke7 {[%emt 0:01:24]} 39. Ke1 {[%emt 0:01:23]} Bf6 {[%emt 0:01:16]} 40. Qh3 {[%emt 0:01:11]} Qg5 {[%emt 0:02:23]} 41. Kd1 {[%emt 0:10:04]} Bxb2 {[%emt 0:10:10]} 42. Kc2 {[%emt 0:00:41]} Qf6 {[%emt 0:05:42]} 43. Qf3 {[%emt 0:21:21]} d5 {[%emt 0:03:10]} 44. Rd1 {[%emt 0:00:00]} Ba3 {[%emt 0:02:42]} 45. Rb1 {[%emt 0:00:00]} Qd4 {[%emt 0:01:37]} 46. Bxd5 {[%emt 0:00:00]} Bd6 {[%emt 0:03:15]} 47. Bb3 {[%emt 0:00:00]} Ba3 {[%emt 0:07:39]} 48. Bd5 {[%emt 0:02:30]} Qc5+ 49. Kb3 {[%emt 0:00:30]} 0-1

[Event "Lueneburg Open-A 2019"]
[Site "Lueneburg"]
[Date "2019.08.09"]
[Round "7.37"]
[White "Probst, Alexander"]
[Black "Rothenberg, Jannik"]
[Result "0-1"]
[ECO "C06"]
[WhiteElo "1969"]
[BlackElo "1859"]
[Annotator "NA"]
[PlyCount "100"]
[EventDate "2019.08.03"]
[EventType "swiss"]
[EventCountry "GER"]
[SourceTitle "playchess.com"]
[Source "ChessBase"]
[SourceQuality "1"]
[TimeControl "40/5400+30:1800+30"]

1. e4 {[%emt 0:00:00]} e6 {[%emt 0:00:00]} 2. d4 {[%emt 0:00:07]} d5 {[%emt 0:00:06]} 3. Nd2 {[%emt 0:00:27]} Nf6 {[%emt 0:02:17]} 4. e5 {[%emt 0:00:36]} Nfd7 {[%emt 0:00:17]} 5. Bd3 {[%emt 0:00:20]} c5 {[%emt 0:00:15]} 6. c3 {[%emt 0:00:09]} Nc6 {[%emt 0:00:20]} 7. Ne2 {[%emt 0:00:15]} cxd4 {[%emt 0:00:13]} 8. cxd4 {[%emt 0:00:17]} f6 {[%emt 0:00:23]} 9. exf6 {[%emt 0:00:33]} Nxf6 {[%emt 0:00:12]} 10. Nf3 {[%emt 0:00:43]} Bd6 {[%emt 0:00:22]} 11. Bf4 {[%emt 0:01:11]} Bxf4 {[%emt 0:07:00]} 12. Nxf4 {[%emt 0:00:20]} Qa5+ {[%emt 0:00:21]} 13. Qd2 {[%emt 0:01:01]} Qxd2+ {[%emt 0:00:41]} 14. Kxd2 {[%emt 0:00:12]} Ne4+ {[%emt 0:13:25]} 15. Ke3 {[%emt 0:04:50]} O-O {[%emt 0:08:11]} 16. Bxe4 {[%emt 0:04:06]} dxe4 {[%emt 0:00:44]} 17. Ne5 {[%emt 0:10:00]} Nxd4 {[%emt 0:03:16]} 18. Kxe4 {[%emt 0:03:04]} Nf5 {[%emt 0:05:39]} 19. g4 {[%emt 0:04:55]} Ne7 {[%emt 0:13:37]} 20. Rac1 {[%emt 0:06:29]} b6 {[%emt 0:01:22]} 21. Rhd1 {[%emt 0:02:05]} g5 {[%emt 0:07:11]} 22. Nfd3 {[%emt 0:11:19]} Nd5 {[%emt 0:05:59]} 23. Nc6 {[%emt 0:01:50]} Ba6 {[%emt 0:05:57]} 24. Ndb4 {[%emt 0:03:01]} Rf4+ {[%emt 0:00:48]} 25. Ke5 {[%emt 0:01:18]} Nxb4 {[%emt 0:03:26]} 26. Nxb4 {[%emt 0:03:44]} Rxb4 {[%emt 0:00:16]} 27. Rc7 {[%emt 0:00:22]} Rxb2 {[%emt 0:08:04]} 28. Rdd7 {[%emt 0:00:36]} Re2+ {[%emt 0:00:35]} 29. Kf6 {[%emt 0:01:15]} Rxf2+ {[%emt 0:01:37]} 30. Kxg5 {[%emt 0:01:18]} Rxh2 {[%emt 0:00:53]} 31. a4 {[%emt 0:01:04]} Rh3 {[%emt 0:06:44]} 32. Rg7+ {[%emt 0:00:42]} Kh8 {[%emt 0:00:08]} 33. Rge7 {[%emt 0:03:36]} Rg8+ {[%emt 0:02:22]} 34. Kf6 {[%emt 0:01:55]} Rf3+ {[%emt 0:03:07]} 35. Ke5 {[%emt 0:01:44]} Bd3 {[%emt 0:00:54]} 36. Rxa7 {[%emt 0:01:27]} Rg5+ {[%emt 0:00:46]} 37. Kd6 {[%emt 0:02:43]} Rxg4 {[%emt 0:00:03]} 38. Rab7 {[%emt 0:05:55]} Rf8 {[%emt 0:00:40]} 39. Rxb6 {[%emt 0:00:25]} Rxa4 {[%emt 0:00:21]} 40. Ke5 {[%emt 0:02:18]} Bf5 {[%emt 0:00:47]} 41. Rb2 {[%emt 0:30:53]} Re4+ {[%emt 0:01:03]} 42. Kd6 {[%emt 0:00:00]} Rd8+ {[%emt 0:00:44]} 43. Kc7 {[%emt 0:00:00]} Rg8 {[%emt 0:00:56]} 44. Kd6 {[%emt 0:00:00]} Reg4 {[%emt 0:00:31]} 45. Rh2 {[%emt 0:00:00]} R4g7 {[%emt 0:00:19]} 46. Rxg7 {[%emt 0:00:00]} Kxg7 {[%emt 0:00:35]} 47. Ke5 {[%emt 0:00:00]} Kf7 {[%emt 0:00:29]} 48. Rh6 {[%emt 0:00:00]} Rg4 {[%emt 0:00:33]} 49. Kd6 {[%emt 0:00:00]} Kg7 {[%emt 0:00:18]} 50. Rh2 {[%emt 0:00:00]} Kg6 {[%emt 0:00:11]} 0-1

[Event "Lueneburg Open-A 2019"]
[Site "Lueneburg"]
[Date "2019.08.10"]
[Round "8.1"]
[White "Kollars, Dmitrij"]
[Black "Ovsejevitsch, Sergei"]
[Result "1/2-1/2"]
[ECO "C65"]
[WhiteElo "2581"]
[BlackElo "2590"]
[Annotator "ChessBase"]
[PlyCount "58"]
[EventDate "2019.08.03"]
[EventType "swiss"]
[EventCountry "GER"]
[SourceTitle "playchess.com"]
[Source "ChessBase"]
[SourceQuality "1"]
[TimeControl "40/5400+30:1800+30"]

1. e4 {[%emt 0:02:42]} e5 {[%emt 0:00:00]} 2. Nf3 {[%emt 0:00:37]} Nc6 {[%emt 0:00:00]} 3. Bb5 {[%emt 0:00:12]} Nf6 {[%emt 0:00:43]} 4. d3 {[%emt 0:00:29]} Bc5 {[%emt 0:00:50]} 5. Nbd2 {[%emt 0:00:22]} d6 {[%emt 0:01:24]} 6. c3 {[%emt 0:00:15]} O-O {[%emt 0:00:30]} 7. O-O {[%emt 0:00:07]} a6 {[%emt 0:01:05]} 8. Ba4 {[%emt 0:00:29]} Ba7 {[%emt 0:00:22]} 9. h3 {[%emt 0:00:40]} h6 {[%emt 0:01:42]} 10. Re1 {[%emt 0:00:41]} Re8 {[%emt 0:01:01]} 11. Nf1 {[%emt 0:00:56]} b5 {[%emt 0:03:18]} 12. Bc2 {[%emt 0:00:37]} d5 {[%emt 0:00:38]} 13. exd5 {[%emt 0:02:52]} Qxd5 {[%emt 0:14:23]} 14. Ng3 {[%emt 0:10:44]} Be6 {[%emt 0:03:25]} 15. Qe2 {[%emt 0:03:50]} Qd7 {[%emt 0:10:18]} 16. Be3 {[%emt 0:04:19]} Bxe3 {[%emt 0:15:44]} 17. Qxe3 {[%emt 0:02:22]} Rad8 {[%emt 0:07:00]} 18. Nxe5 {[%emt 0:15:18]} Nxe5 {[%emt 0:05:09]} 19. Qxe5 {[%emt 0:00:10]} Bb3 {[%emt 0:03:00]} 20. Bxb3 {[%emt 0:06:08]} Rxe5 {[%emt 0:00:32]} 21. Rxe5 {[%emt 0:00:03]} Re8 {[%emt 0:01:22]} 22. d4 {[%emt 0:02:36]} Rxe5 {[%emt 0:02:16]} 23. dxe5 {[%emt 0:00:02]} Nd5 {[%emt 0:00:22]} 24. Rd1 {[%emt 0:03:44]} c6 {[%emt 0:00:10]} 25. Nf1 {[%emt 0:02:00]} Qf5 {[%emt 0:03:26]} 26. Bxd5 {[%emt 0:03:21]} cxd5 {[%emt 0:00:07]} 27. Rxd5 {[%emt 0:01:03]} Qb1 {[%emt 0:00:47]} 28. b4 {[%emt 0:00:49]} Qxa2 {[%emt 0:01:18]} 29. Rd3 {[%emt 0:00:58]} a5 {[%emt 0:23:38]} 1/2-1/2

[Event "Lueneburg Open-A 2019"]
[Site "Lueneburg"]
[Date "2019.08.10"]
[Round "8.2"]
[White "Vorobiov, Evgeny E."]
[Black "Sebastian, Dirk"]
[Result "1/2-1/2"]
[ECO "A58"]
[WhiteElo "2578"]
[BlackElo "2453"]
[Annotator "ChessBase"]
[PlyCount "33"]
[EventDate "2019.08.03"]
[EventType "swiss"]
[EventCountry "GER"]
[SourceTitle "playchess.com"]
[Source "ChessBase"]
[SourceQuality "1"]
[TimeControl "40/5400+30:1800+30"]

1. d4 {[%emt 0:00:00]} Nf6 {[%emt 0:00:00]} 2. c4 {[%emt 0:00:00]} c5 {[%emt 0:00:00]} 3. d5 {[%emt 0:00:00]} b5 {[%emt 0:00:00]} 4. cxb5 {[%emt 0:00:00]} a6 {[%emt 0:00:00]} 5. bxa6 {[%emt 0:00:00]} g6 {[%emt 0:00:00]} 6. Nc3 {[%emt 0:00:00]} Bg7 {[%emt 0:00:05]} 7. a7 {[%emt 0:00:12]} Rxa7 {[%emt 0:00:05]} 8. e4 {[%emt 0:00:11]} O-O {[%emt 0:01:00]} 9. Nf3 {[%emt 0:00:06]} e6 {[%emt 0:02:37]} 10. Be2 {[%emt 0:00:15]} exd5 {[%emt 0:00:56]} 11. exd5 {[%emt 0:00:07]} d6 {[%emt 0:00:12]} 12. O-O {[%emt 0:00:21]} Na6 {[%emt 0:00:43]} 13. Nd2 {[%emt 0:08:32]} Nc7 {[%emt 0:00:29]} 14. Nc4 {[%emt 0:00:27]} Ba6 {[%emt 0:00:38]} 15. Bf4 {[%emt 0:15:23]} Re8 {[%emt 0:03:17]} 16. Be3 {[%emt 0:20:17]} Ng4 {[%emt 0:13:43]} 17. Bxg4 {[%emt 0:07:30]} 1/2-1/2

[Event "Lueneburg Open-A 2019"]
[Site "Lueneburg"]
[Date "2019.08.10"]
[Round "8.3"]
[White "Ertan, Can"]
[Black "Feuerstack, Aljoscha"]
[Result "0-1"]
[ECO "B12"]
[WhiteElo "2396"]
[BlackElo "2441"]
[Annotator "NA"]
[PlyCount "60"]
[EventDate "2019.08.03"]
[EventType "swiss"]
[EventCountry "GER"]
[SourceTitle "playchess.com"]
[Source "ChessBase"]
[SourceQuality "1"]
[TimeControl "40/5400+30:1800+30"]

1. e4 {[%emt 0:00:00]} c6 {[%emt 0:00:00]} 2. d4 {[%emt 0:00:00]} d5 {[%emt 0:00:00]} 3. e5 {[%emt 0:00:00]} Bf5 {[%emt 0:00:00]} 4. Nf3 {[%emt 0:00:00]} e6 {[%emt 0:00:00]} 5. Be2 {[%emt 0:00:00]} Ne7 {[%emt 0:00:01]} 6. O-O {[%emt 0:00:03]} Bg6 {[%emt 0:00:05]} 7. Nbd2 {[%emt 0:00:58]} Nf5 {[%emt 0:00:10]} 8. Nb3 {[%emt 0:01:14]} Nd7 {[%emt 0:00:27]} 9. a4 {[%emt 0:00:34]} a6 {[%emt 0:00:11]} 10. a5 {[%emt 0:00:10]} c5 {[%emt 0:00:21]} 11. c4 {[%emt 0:00:45]} dxc4 {[%emt 0:00:38]} 12. Bxc4 {[%emt 0:21:52]} cxd4 {[%emt 0:00:29]} 13. g4 {[%emt 0:01:16]} Nh4 {[%emt 0:05:25]} 14. Nbxd4 {[%emt 0:02:20]} Bc5 {[%emt 1:29:13]} 15. Qa4 {[%emt 0:28:54]} Bxd4 {[%emt 0:07:39]} 16. Nxd4 {[%emt 0:00:14]} O-O {[%emt 0:00:36]} 17. Be2 {[%emt 0:09:18]} Nxe5 {[%emt 0:02:43]} 18. Ra3 {[%emt 0:00:55]} Rc8 {[%emt 0:02:03]} 19. Rd1 {[%emt 0:03:41]} Qd5 {[%emt 0:06:53]} 20. Rg3 {[%emt 0:03:37]} Rfd8 {[%emt 0:07:11]} 21. f4 {[%emt 0:01:31]} Bd3 {[%emt 0:16:08]} 22. Nf5 {[%emt 0:13:03]} exf5 {[%emt 0:02:36]} 23. fxe5 {[%emt 0:00:39]} Rxc1 {[%emt 0:00:30]} 24. Rxc1 {[%emt 0:03:23]} Bxe2 {[%emt 0:12:13]} 25. gxf5 {[%emt 0:00:46]} Nxf5 {[%emt 0:00:23]} 26. Rgc3 {[%emt 0:01:32]} Qxe5 {[%emt 0:02:36]} 27. Qd7 {[%emt 0:00:04]} Rf8 {[%emt 0:00:37]} 28. Re1 {[%emt 0:00:45]} Nd4 {[%emt 0:00:36]} 29. Qxb7 {[%emt 0:01:47]} Qf4 {[%emt 0:00:51]} 30. Kg2 {[%emt 0:01:46]} Qd2 {[%emt 0:00:17]} 0-1